bitfinex/quotes_BTCUSD_20251224
["timestamp","ask_amount","ask_price","bid_price","bid_amount"]
[1766588155824,0.01148237,87090.0,87081.0,0.01164]
[1766588156027,0.0114825,87089.0,87081.0,0.01164]
[1766588156244,0.01148277,87087.0,87081.0,0.01164]
[1766588156446,1.40005,87087.0,87081.0,0.01164]
[1766588157153,0.45040179,87091.0,87081.0,0.01164]
[1766588157924,0.46188403,87091.0,87081.0,0.01164]
[1766588158136,1.40005,87096.0,87081.0,0.01164]
[1766588159228,1.45707086,87095.0,87081.0,0.01164]
[1766588159437,1.39966171,87095.0,87081.0,0.01164]
[1766588160260,0.01148184,87094.0,87081.0,0.01164]
[1766588160411,0.01148197,87093.0,87081.0,0.01164]
[1766588160626,0.01148277,87087.0,87081.0,0.01164]
[1766588160858,0.01148422,87076.0,87067.0,0.00010655]
[1766588161058,1.38818,87075.0,87067.0,0.01174655]
[1766588161229,1.38818,87075.0,87068.0,0.02291738]
[1766588161453,0.01148092,87101.0,87072.0,0.01148474]
[1766588161794,0.45040179,87090.0,87075.0,0.2273]
[1766588161979,1.39966171,87095.0,87082.0,0.02291738]
[1766588162133,1.38818,87095.0,87082.0,0.02291738]
[1766588162347,1.45707206,87093.0,87082.0,0.02291738]
[1766588162548,1.39966197,87093.0,87082.0,0.02291738]
[1766588162751,0.06889268,87092.0,87082.0,0.02236838]
[1766588162957,0.01148211,87092.0,87080.0,0.00011]
[1766588163324,1.3996625,87089.0,87080.0,0.00011]
[1766588163550,0.01148277,87087.0,87080.0,0.00011]
[1766588163734,0.01148224,87091.0,87068.0,0.02291738]
[1766588163735,1.38818,87078.0,87068.0,0.02291738]
[1766588163935,1.39966422,87076.0,87067.0,0.00010655]
[1766588164147,0.05742571,87069.0,87060.0,0.00011]
[1766588164379,0.01148567,87065.0,87060.0,0.00011]
[1766588164590,0.06891407,87065.0,87060.0,0.00011]
[1766588164793,0.01148567,87065.0,87060.0,0.00011]
[1766588164996,0.01148567,87065.0,87044.0,0.22752]
[1766588164997,1.38818,87062.0,87041.0,0.04596]
[1766588165230,0.45040179,87060.0,87042.0,0.01164]
[1766588165434,1.39966606,87062.0,87042.0,0.01164]
[1766588165992,0.01148619,87061.0,87042.0,0.01164]
[1766588166188,0.06891782,87061.0,87042.0,0.01164]
[1766588166371,0.02291738,87060.0,87042.0,0.01164]
[1766588166577,0.03440371,87060.0,87042.0,0.01164]
[1766588166790,0.02291738,87060.0,87042.0,0.01164]
[1766588167411,0.01164,87064.0,87042.0,0.01164]
[1766588167615,0.06892062,87057.0,87042.0,0.01164]
[1766588167815,0.01148725,87053.0,87042.0,0.01164]
[1766588168026,0.01148712,87054.0,87042.0,0.01164]
[1766588168231,1.39982,87057.0,87042.0,0.01164]
[1766588168869,1.38818,87053.0,87042.0,0.01164]
[1766588169074,0.02291738,87047.0,87042.0,0.01164]
[1766588169272,0.02291738,87047.0,87034.0,0.01164]
[1766588169273,1.41109738,87047.0,87034.0,0.01164]
[1766588169708,1.41109738,87047.0,87030.0,0.01149029]
[1766588169906,1.41109738,87047.0,87031.0,0.01164]
[1766588170133,1.42258542,87047.0,87028.0,0.04596]
[1766588170284,1.38818,87040.0,87029.0,0.01164]
[1766588171519,1.38818,87040.0,87029.0,0.01174659]
[1766588172121,1.38818,87040.0,87029.0,0.00010659]
[1766588172733,0.01164,87041.0,87029.0,0.00010659]
[1766588176428,0.01164,87041.0,87028.0,0.04596]
[1766588176429,0.02291738,87032.0,87015.0,0.00025248]
[1766588176609,0.02291738,87032.0,87019.0,0.01164]
[1766588177232,0.01149147,87021.0,87015.0,0.00025248]
[1766588177423,0.45040179,87030.0,87015.0,0.00025248]
[1766588177424,0.01164,87022.0,87015.0,0.00025248]
[1766588178307,0.011091,87022.0,87015.0,0.00025248]
[1766588179808,1e-06,87022.0,87015.0,0.00025248]
[1766588181415,0.01164,87027.0,87015.0,0.00025248]
[1766588181645,0.02291738,87032.0,87015.0,0.00025248]
[1766588181845,0.05744551,87039.0,87017.0,0.37437]
[1766588182033,0.01148923,87038.0,87017.0,0.37437]
[1766588182255,0.01164,87037.0,87017.0,0.37437]
[1766588182408,0.02312936,87037.0,87017.0,0.37437]
[1766588182607,0.01164,87037.0,87018.0,0.01164]
[1766588184216,1.39966804,87047.0,87037.0,0.00055]
[1766588184422,1.39966804,87047.0,87032.0,0.01164]
[1766588184423,0.01174637,87047.0,87032.0,0.01164]
[1766588184979,0.00010637,87047.0,87032.0,0.01164]
[1766588185182,0.00010637,87047.0,87038.0,1e-08]
[1766588185385,0.04596,87058.0,87040.0,0.02291738]
[1766588185584,0.01148593,87063.0,87042.0,0.33934]
[1766588185788,0.01148593,87063.0,87041.0,0.01164]
[1766588185789,0.01164,87064.0,87044.0,0.50689]
[1766588185992,4.5e-07,87062.0,87044.0,0.50689]
[1766588186454,4.5e-07,87062.0,87052.0,0.00011]
[1766588186652,4.5e-07,87062.0,87052.0,0.01175]
[1766588187089,0.00011,87072.0,87054.0,0.47237738]
[1766588187295,0.01148408,87077.0,87056.0,0.44935]
[1766588187501,0.01148435,87075.0,87056.0,0.44935]
[1766588187723,5.06148422,87076.0,87056.0,0.44935]
[1766588187965,0.01148422,87076.0,87056.0,0.44935]
[1766588188197,5.05,87076.0,87056.0,0.44935]
[1766588188427,5.05,87076.0,87057.0,0.46099]
[1766588189231,5.06148422,87076.0,87057.0,0.46099]
[1766588189439,0.06890692,87074.0,87057.0,0.46099]
[1766588189712,0.01148461,87073.0,87057.0,0.46099]
[1766588190335,0.06890612,87075.0,87057.0,0.46099]
[1766588190535,0.01148448,87074.0,87057.0,0.46099]
[1766588190910,0.06890612,87075.0,87057.0,0.46099]
[1766588191109,0.06890533,87076.0,87058.0,0.01164]
[1766588191289,0.01148448,87074.0,87059.0,0.01164]
[1766588191494,0.06890755,87074.0,87059.0,0.01164]
[1766588191675,0.01148474,87072.0,87059.0,0.01164]
[1766588192041,0.06890696,87074.0,87059.0,0.01164]
[1766588192250,0.01148422,87076.0,87059.0,0.01164]
[1766588192441,0.01148448,87074.0,87059.0,0.01164]
[1766588193005,0.00010655,87077.0,87059.0,0.01164]
[1766588193213,5.05,87076.0,87057.0,0.44935]
[1766588193407,0.00010655,87077.0,87058.0,0.01164]
[1766588193637,0.01148435,87075.0,87058.0,0.01164]
[1766588193969,0.01148422,87076.0,87059.0,0.01164]
[1766588194260,0.01148448,87074.0,87059.0,0.01164]
[1766588194432,0.01148435,87075.0,87059.0,0.01164]
[1766588194635,0.06890615,87075.0,87059.0,0.01164]
[1766588194851,0.01148435,87075.0,87059.0,0.01164]
[1766588195257,0.01148448,87074.0,87059.0,0.01164]
[1766588195457,0.01148461,87073.0,87059.0,0.01164]
[1766588195860,0.01148448,87074.0,87059.0,0.01164]
[1766588196146,0.01148435,87075.0,87059.0,0.01164]
[1766588196473,0.01148422,87076.0,87060.0,0.01164]
[1766588196729,0.06890534,87076.0,87060.0,0.01164]
[1766588197122,0.01148435,87075.0,87060.0,0.01164]
[1766588197337,0.01148422,87076.0,87060.0,0.01164]
[1766588197536,5.05,87076.0,87060.0,0.01164]
[1766588197743,5.06148422,87076.0,87060.0,0.01164]
[1766588197920,0.01148422,87076.0,87060.0,0.01164]
[1766588198840,0.01148435,87075.0,87060.0,0.01164]
[1766588199226,0.000549,87060.0,87052.0,0.00011]
[1766588199454,0.01148646,87059.0,87052.0,0.00011]
[1766588199625,1.48728672,87057.0,87042.0,0.01164]
[1766588199829,1.4758,87057.0,87043.0,0.01164]
[1766588200630,1.54472047,87057.0,87043.0,0.01164]
[1766588200834,0.01148817,87046.0,87037.0,0.00011]
[1766588201204,0.0114887,87042.0,87038.0,0.01164]
[1766588201811,0.01148844,87044.0,87037.0,0.00011]
[1766588201947,0.01148897,87040.0,87037.0,0.00021637]
[1766588202154,0.22976685,87045.0,87037.0,0.00021637]
[1766588202155,0.01148804,87047.0,87037.0,3.7e-07]
[1766588202369,0.06892836,87047.0,87037.0,3.7e-07]
[1766588202582,0.0114887,87042.0,87037.0,3.7e-07]
[1766588202788,0.01148883,87041.0,87037.0,3.7e-07]
[1766588202996,0.01148897,87040.0,87037.0,3.7e-07]
[1766588203393,1.53324617,87038.0,87037.0,3.7e-07]
[1766588203993,1.54488617,87038.0,87037.0,3.7e-07]
[1766588204637,0.0114887,87042.0,87037.0,3.7e-07]
[1766588204638,0.01164,87044.0,87038.0,0.000216]
[1766588204825,0.02312844,87044.0,87038.0,0.000216]
[1766588205043,0.01164,87044.0,87037.0,3.7e-07]
[1766588205244,0.02312844,87044.0,87037.0,3.7e-07]
[1766588205524,0.01164,87044.0,87037.0,3.7e-07]
[1766588205781,0.01164,87044.0,87021.0,0.06894884]
[1766588205782,0.01164,87044.0,87015.0,0.00025248]
[1766588205983,0.01149121,87023.0,87015.0,0.00025248]
[1766588206195,0.01149187,87018.0,87015.0,4.8e-07]
[1766588206416,0.0574604,87017.0,87015.0,4.8e-07]
[1766588206603,0.06895288,87016.0,87013.0,0.00011]
[1766588206793,0.01149174,87019.0,87013.0,0.00011]
[1766588206794,0.06895101,87019.0,87013.0,0.00011]
[1766588206937,0.01149213,87016.0,87013.0,2.9e-05]
[1766588207150,0.0689529,87016.0,87013.0,2.9e-05]
[1766588207519,0.05746201,87014.0,87013.0,2.9e-05]
[1766588207722,0.05746191,87015.0,87013.0,2.9e-05]
[1766588207864,0.06895269,87017.0,87013.0,2.9e-05]
[1766588208333,0.01149213,87016.0,87013.0,2.9e-05]
[1766588208525,0.0689529,87016.0,87013.0,2.9e-05]
[1766588208726,0.05746137,87015.0,87013.0,2.9e-05]
[1766588209049,0.05746201,87014.0,87013.0,2.9e-05]
[1766588209672,0.22982058,87025.0,87014.0,0.000549]
[1766588209920,0.06895225,87017.0,87014.0,0.000549]
[1766588210137,0.05746135,87015.0,87014.0,0.000549]
[1766588210306,0.05746135,87015.0,87013.0,2.9e-05]
[1766588210307,0.05746201,87014.0,87013.0,2.9e-05]
[1766588210506,1.35e-06,87015.0,87013.0,2.9e-05]
[1766588212003,1.35e-06,87015.0,87008.0,0.0004]
[1766588212004,0.05746531,87009.0,87008.0,1e-08]
[1766588212308,0.01149412,87001.0,86992.0,0.0004]
[1766588212465,0.01164,87009.0,87001.0,0.000549]
[1766588212665,0.06895699,87011.0,87001.0,0.000549]
[1766588213004,1.35e-06,87015.0,87002.0,0.02291738]
[1766588213221,1.35e-06,87016.0,87007.0,0.00025249]
[1766588213431,0.01149227,87015.0,87007.0,0.00025249]
[1766588213648,0.05746069,87016.0,87007.0,0.00025249]
[1766588213788,0.06895282,87016.0,87007.0,0.00025249]
[1766588213997,1.48729213,87016.0,87007.0,0.00025249]
[1766588214201,0.01149412,87001.0,86993.0,0.01164]
[1766588214413,0.01149412,87001.0,86992.0,0.00050649]
[1766588214414,0.01149425,87000.0,86994.0,0.01164]
[1766588214781,0.01149438,86999.0,86992.0,0.00050649]
[1766588214989,0.01149478,86996.0,86992.0,0.00050649]
[1766588215182,0.06896969,86995.0,86992.0,0.00050649]
[1766588215383,0.01149425,87000.0,86995.0,0.000549]
[1766588215587,0.06896479,87001.0,86992.0,0.00050649]
[1766588215787,0.01149425,87000.0,86992.0,0.00050649]
[1766588215939,0.06896479,87001.0,86992.0,0.00050649]
[1766588216142,0.05747198,86999.0,86992.0,0.00050649]
[1766588216364,0.06896636,86999.0,86992.0,0.00050649]
[1766588216584,0.01149438,86999.0,86992.0,0.00050649]
[1766588216951,0.01149451,86998.0,86992.0,0.00050649]
[1766588217423,0.01149464,86997.0,86992.0,0.00050649]
[1766588217820,0.06896954,86995.0,86992.0,0.00050649]
[1766588218018,0.01149478,86996.0,86992.0,0.00050649]
[1766588218222,0.05747588,86993.0,86992.0,1e-08]
[1766588218624,0.05748051,86986.0,86985.0,1e-08]
[1766588218864,0.05748051,86986.0,86977.0,1e-08]
[1766588218865,0.06898146,86980.0,86977.0,1e-08]
[1766588220870,0.01149636,86984.0,86977.0,1e-08]
[1766588221365,0.01149676,86981.0,86977.0,1e-08]
[1766588221570,0.05748547,86979.0,86977.0,1e-08]
[1766588221782,0.01149782,86973.0,86953.0,0.02329738]
[1766588221995,1.43966,86980.0,86973.0,0.000549]
[1766588222206,1.43966,86998.0,86980.0,0.00055]
[1766588222425,0.01,87026.0,86933.0,0.01164969]
[1766588222426,1.43966,86982.0,86933.0,0.01164969]
[1766588222636,0.06900744,86948.0,86933.0,0.01164969]
[1766588222862,0.05750638,86947.0,86933.0,0.01164969]
[1766588223091,1.43966,86950.0,86933.0,0.01164969]
[1766588223301,0.01150099,86949.0,86945.0,4.946e-05]
[1766588223509,0.01150046,86953.0,86945.0,0.00015613]
[1766588223735,0.01164,86955.0,86945.0,0.00015613]
[1766588223736,0.01150112,86948.0,86945.0,0.00015613]
[1766588223985,0.01150112,86948.0,86933.0,0.01164969]
[1766588223986,0.01150205,86941.0,86933.0,0.01164969]
[1766588224172,0.00083631,86933.0,86929.0,1e-08]
[1766588224613,0.01150324,86932.0,86929.0,1e-08]
[1766588224822,0.05751688,86931.0,86929.0,1e-08]
[1766588225244,0.06902019,86932.0,86929.0,1e-08]
[1766588225415,0.06901961,86932.0,86929.0,1e-08]
[1766588225675,0.05751724,86931.0,86929.0,1e-08]
[1766588226114,0.05752018,86926.0,86925.0,1e-08]
[1766588226317,0.06916018,86926.0,86925.0,1e-08]
[1766588226547,0.01164,86926.0,86925.0,1e-08]
[1766588226756,0.011533,86926.0,86925.0,1e-08]
[1766588226965,0.011533,86926.0,86922.0,1e-08]
[1766588226966,0.06902551,86925.0,86922.0,1e-08]
[1766588227174,0.02291738,86923.0,86922.0,0.00010661]
[1766588227386,0.02291738,86923.0,86922.0,6.1e-07]
[1766588228158,0.03442181,86923.0,86903.0,0.01257]
[1766588228364,0.0230238,86923.0,86903.0,0.01257]
[1766588228798,0.01150549,86915.0,86903.0,0.00093]
[1766588229397,0.01150536,86916.0,86899.0,0.046]
[1766588229398,0.05752828,86914.0,86899.0,0.046]
[1766588229655,0.67327726,86911.0,86899.0,0.046]
[1766588229886,0.01164,86913.0,86911.0,0.000106]
[1766588230109,0.01164,86913.0,86900.0,0.00093]
[1766588230110,0.01069,86913.0,86900.0,0.00093]
[1766588231141,0.02219575,86913.0,86900.0,0.00093]
[1766588231333,0.01069,86913.0,86900.0,0.00093]
[1766588231747,0.01150589,86912.0,86893.0,0.01164]
[1766588231956,0.01150668,86906.0,86893.0,0.01164]
[1766588232149,0.05753231,86908.0,86893.0,0.01164]
[1766588232354,0.05753231,86908.0,86890.0,0.0004]
[1766588232355,0.01150734,86901.0,86890.0,0.0004]
[1766588232535,0.66177124,86900.0,86890.0,0.0004]
[1766588232945,0.66177124,86900.0,86899.0,0.00082268]
[1766588233150,0.06904354,86902.0,86899.0,0.00027268]
[1766588233359,0.01150721,86902.0,86890.0,0.0004]
[1766588233568,0.01150695,86904.0,86890.0,0.0004]
[1766588233776,0.01150536,86916.0,86904.0,0.00055]
[1766588233982,0.01150536,86916.0,86889.0,0.05754442]
[1766588234244,0.02314549,86915.0,86892.0,0.01150853]
[1766588234452,0.01150509,86918.0,86892.0,0.01150853]
[1766588234656,0.01150496,86919.0,86895.0,0.01150814]
[1766588234828,2.11293607,86920.0,86895.0,0.01150814]
[1766588234829,0.01164,86917.0,86895.0,0.01150814]
[1766588235058,0.01150549,86915.0,86891.0,0.01150867]
[1766588235264,0.01150549,86915.0,86891.0,0.06905186]
[1766588235496,0.02291738,86909.0,86887.0,0.0115092]
[1766588235668,0.02291738,86909.0,86888.0,0.0690544]
[1766588235870,0.02291738,86909.0,86889.0,0.01150893]
[1766588236110,0.01150642,86908.0,86886.0,0.05764]
[1766588236318,0.01150589,86912.0,86888.0,0.01150906]
[1766588236515,0.01150575,86913.0,86908.0,0.00055]
[1766588236713,0.01150575,86913.0,86888.0,0.06905426]
[1766588236914,0.06903468,86913.0,86888.0,0.01150906]
[1766588237332,0.01150589,86912.0,86890.0,0.0115088]
[1766588237544,0.01150575,86913.0,86890.0,0.0115088]
[1766588237749,1.43966,86920.0,86889.0,0.08069339]
[1766588237750,1.33085115,86920.0,86889.0,0.01164]
[1766588237950,0.06915721,86931.0,86913.0,0.10923]
[1766588238160,0.00011,86926.0,86913.0,0.00065642]
[1766588238383,0.05752291,86922.0,86913.0,0.00010642]
[1766588238577,0.03442168,86924.0,86913.0,0.00010642]
[1766588238787,0.01150443,86923.0,86913.0,0.00010642]
[1766588238998,0.01150469,86921.0,86913.0,0.00010642]
[1766588239209,0.01150628,86909.0,86906.0,1e-08]
[1766588239384,0.01161292,86909.0,86906.0,1e-08]
[1766588239609,0.00010664,86909.0,86906.0,1e-08]
[1766588239814,0.01161175,86913.0,86898.0,0.01088399]
[1766588239945,0.01150549,86915.0,86898.0,0.0003557]
[1766588240150,0.06916519,86919.0,86898.0,0.0003557]
[1766588240358,0.01164,86919.0,86898.0,0.0003557]
[1766588240604,0.01150522,86917.0,86898.0,0.0003557]
[1766588240801,1.43966,86918.0,86898.0,0.0003557]
[1766588241970,1.43966,86918.0,86899.0,0.01150761]
[1766588242179,0.66177124,86910.0,86898.0,0.0003557]
[1766588242812,1.43966,86916.0,86898.0,0.0003557]
[1766588243438,0.66177124,86920.0,86901.0,0.01150734]
[1766588243644,0.01164,86919.0,86904.0,0.09704]
[1766588243817,1.48581,86926.0,86905.0,0.01150681]
[1766588243818,0.01164,86922.0,86905.0,0.01150681]
[1766588244050,0.01164,86922.0,86904.0,0.12018695]
[1766588244252,0.01164,86922.0,86904.0,0.10868]
[1766588244874,0.01164,86922.0,86904.0,0.12018695]
[1766588245059,0.01164,86922.0,86904.0,0.10868]
[1766588245424,0.01164,86922.0,86904.0,0.12018695]
[1766588245615,1.43977,86926.0,86905.0,0.02314681]
[1766588245809,0.01150324,86932.0,86910.0,0.01150615]
[1766588246015,0.01150324,86932.0,86916.0,0.00011]
[1766588246016,0.01164,86930.0,86916.0,0.00011]
[1766588246419,0.0231435,86930.0,86916.0,0.00011]
[1766588246615,0.01164,86930.0,86916.0,0.00011]
[1766588247084,0.01150589,86912.0,86891.0,0.00025603]
[1766588247230,0.01150549,86915.0,86904.0,0.01164]
[1766588247231,0.06903311,86915.0,86904.0,0.01164]
[1766588247431,0.06903264,86916.0,86904.0,0.01164]
[1766588247656,0.06903264,86916.0,86893.0,0.04604]
[1766588247657,0.01150549,86915.0,86901.0,0.01164]
[1766588247813,0.67327593,86921.0,86901.0,0.01164]
[1766588248015,0.01164,86925.0,86907.0,0.06201]
[1766588248214,0.02314417,86925.0,86907.0,0.06201]
[1766588248458,0.01164,86925.0,86907.0,0.06201]
[1766588249248,0.01150456,86922.0,86899.0,0.02291738]
[1766588249455,1.39335,86925.0,86902.0,0.07351721]
[1766588249657,1.39335,86925.0,86902.0,0.06201]
[1766588249658,0.0115043,86924.0,86902.0,0.06201]
[1766588249960,1.39335,86925.0,86904.0,0.01150695]
[1766588250157,0.01164,86925.0,86907.0,0.06201]
[1766588250355,0.02314417,86925.0,86907.0,0.06201]
[1766588250574,0.01164,86925.0,86907.0,0.06201]
[1766588251879,0.01164,86925.0,86905.0,0.01164]
[1766588251880,0.02314417,86925.0,86905.0,0.01164]
[1766588252079,0.24160451,86919.0,86905.0,0.01164]
[1766588252341,0.000439,86905.0,86904.0,0.01164]
[1766588252510,0.00055,86904.0,86894.0,0.04604]
[1766588252664,0.01150628,86909.0,86900.0,0.01164]
[1766588252869,0.01150787,86897.0,86891.0,0.00025603]
[1766588253097,0.01150933,86886.0,86882.0,0.06201]
[1766588253300,0.01186351,86897.0,86886.0,0.01164]
[1766588253540,0.01186351,86897.0,86876.0,0.05755065]
[1766588253541,0.00035564,86897.0,86876.0,0.05755065]
[1766588253783,0.00035564,86897.0,86877.0,0.07365]
[1766588254094,0.05754211,86893.0,86877.0,0.07365]
[1766588254295,0.01150853,86892.0,86878.0,0.01164]
[1766588254577,0.01150867,86891.0,86878.0,0.01164]
[1766588254767,0.01150867,86891.0,86879.0,0.01164]
[1766588254972,0.00035564,86897.0,86879.0,0.01164]
[1766588255167,0.66177124,86890.0,86879.0,0.01164]
[1766588255590,0.66177124,86890.0,86879.0,0.02315026]
[1766588255788,0.66177124,86890.0,86879.0,0.01164]
[1766588256015,0.00035564,86897.0,86890.0,0.00011]
[1766588256291,0.011508,86896.0,86890.0,0.00011]
[1766588256444,0.01186351,86897.0,86882.0,0.01164]
[1766588256644,0.05789511,86897.0,86882.0,0.01164]
[1766588256876,0.011508,86896.0,86882.0,0.01164]
[1766588257239,0.01150827,86894.0,86882.0,0.01164]
[1766588257594,0.011508,86896.0,86882.0,0.01164]
[1766588257795,0.00035564,86897.0,86882.0,0.01164]
[1766588257943,0.01150814,86895.0,86882.0,0.01164]
[1766588258368,0.01150827,86894.0,86882.0,0.01164]
[1766588258550,1.38171,86896.0,86883.0,0.00025303]
[1766588259183,0.00035564,86897.0,86883.0,0.00025303]
[1766588259738,0.02314747,86900.0,86883.0,0.00025303]
[1766588259943,0.02314747,86900.0,86883.0,0.00060867]
[1766588260149,0.01164,86900.0,86883.0,0.00060867]
[1766588260386,0.01164,86900.0,86884.0,0.06201]
[1766588260591,0.01150642,86908.0,86900.0,0.00011]
[1766588260722,0.04606366,86909.0,86900.0,0.00011]
[1766588260923,0.10359513,86909.0,86900.0,0.00011]
[1766588261164,0.03455738,86909.0,86892.0,0.01164]
[1766588261368,0.03614835,86909.0,86892.0,0.06201]
[1766588261524,0.04742573,86909.0,86892.0,0.06201]
[1766588261720,0.52714655,86910.0,86892.0,0.06201]
[1766588261989,1.39321549,86915.0,86892.0,0.06201]
[1766588261990,0.01150496,86919.0,86895.0,0.06187814]
[1766588262209,0.01164,86918.0,86901.0,0.02291738]
[1766588262421,0.66188124,86920.0,86902.0,0.05037]
[1766588262422,0.00011,86920.0,86902.0,0.05037]
[1766588262636,0.01150364,86929.0,86901.0,0.02291738]
[1766588262637,0.01164,86928.0,86906.0,0.05753322]
[1766588262846,0.01164,86928.0,86910.0,0.06176615]
[1766588263118,0.0115039,86927.0,86911.0,0.01164]
[1766588263380,0.01164,86928.0,86911.0,0.01164]
[1766588263652,0.04604,86934.0,86911.0,0.01164]
[1766588263653,0.06912642,86936.0,86915.0,0.02291738]
[1766588263880,0.01164,86935.0,86916.0,0.05026]
[1766588264287,0.01150297,86934.0,86916.0,0.05026]
[1766588264489,0.01164,86935.0,86916.0,0.05026]
[1766588264693,0.01164,86935.0,86918.0,0.05026]
[1766588264897,0.00021669,86936.0,86920.0,0.03862]
[1766588265302,0.00021669,86936.0,86921.0,0.01164]
[1766588266628,1.4463,86930.0,86920.0,0.01164]
[1766588266776,0.000439,86921.0,86920.0,0.01164]
[1766588267144,1.4463,86930.0,86920.0,0.01164]
[1766588267551,1.4463,86930.0,86913.0,0.01150575]
[1766588267951,1.4463,86930.0,86915.0,0.06903273]
[1766588268155,1.4463,86930.0,86914.0,0.24161698]
[1766588268156,1.44619,86930.0,86914.0,0.24161698]
[1766588268379,0.00021669,86936.0,86926.0,0.02291738]
[1766588268580,0.00021669,86936.0,86927.0,0.0231439]
[1766588268751,0.00021669,86936.0,86927.0,0.01164]
[1766588270605,1.4463,86943.0,86927.0,0.0231439]
[1766588270859,1.4463,86943.0,86927.0,0.04616797]
[1766588271077,0.00011,86946.0,86927.0,0.03466407]
[1766588271279,0.01150178,86943.0,86927.0,0.01174669]
[1766588271488,1.51531671,86936.0,86927.0,0.00010669]
[1766588271779,1.4463,86933.0,86928.0,0.01164]
[1766588272033,1.4463,86933.0,86928.0,0.01109]
[1766588272775,1.4463,86933.0,86927.0,0.00010669]
[1766588272999,1.4463,86940.0,86927.0,0.00010669]
[1766588273207,1.4463,86940.0,86927.0,0.01161059]
[1766588273411,0.00011,86946.0,86940.0,0.000549]
[1766588273623,0.00011,86946.0,86935.0,0.01164]
[1766588274644,1.4463,86952.0,86935.0,0.01164]
[1766588275402,0.45213478,86960.0,86936.0,0.01164]
[1766588275610,0.45982755,86990.0,86960.0,0.000549]
[1766588275611,1.4463,86974.0,86960.0,0.000549]
[1766588275826,1.4463,86974.0,86958.0,0.01164]
[1766588276232,1.4463,86974.0,86959.0,0.02291738]
[1766588276843,1.44640669,86974.0,86959.0,0.02291738]
[1766588277177,1.44640669,86974.0,86958.0,0.01164]
[1766588277618,1.44640669,86974.0,86959.0,0.02291738]
[1766588277846,1.44640669,86974.0,86959.0,0.03455738]
[1766588278276,0.01149623,86985.0,86974.0,0.00044231]
[1766588278485,0.01149623,86985.0,86962.0,0.06899562]
[1766588278486,0.01164,86983.0,86966.0,0.01164]
[1766588278683,0.02313649,86983.0,86966.0,0.01164]
[1766588279021,0.06908859,86984.0,86964.0,0.00011]
[1766588279022,0.00011,86984.0,86965.0,0.04989887]
[1766588279225,0.00011,86984.0,86964.0,0.00011]
[1766588279226,1.45521,86997.0,86984.0,0.00011]
[1766588279429,6.8e-05,86994.0,86987.0,0.02291738]
[1766588279659,1.45521,87007.0,86987.0,0.02291738]
[1766588279869,1.46680991,87007.0,86992.0,0.00011]
[1766588280069,1.45521,87003.0,86992.0,0.00011]
[1766588280272,1.45521,87001.0,86992.0,3e-06]
[1766588280717,1.46670412,87001.0,86992.0,3e-06]
[1766588281177,1.46670451,86998.0,86992.0,3e-06]
[1766588281385,1.51268529,86994.0,86992.0,3e-06]
[1766588281586,1.46685,86993.0,86992.0,3e-06]
[1766588283972,1.32716977,87003.0,86993.0,0.000217]
[1766588284178,1.45521,86996.0,86979.0,0.01164]
[1766588284379,0.0114957,86989.0,86980.0,0.01164]
[1766588284579,0.45213478,86990.0,86980.0,0.01164]
[1766588284816,0.0114961,86986.0,86968.0,0.01164]
[1766588285024,0.01149649,86983.0,86968.0,0.01164]
[1766588285383,0.01149676,86981.0,86968.0,0.01164]
[1766588285585,0.06897996,86982.0,86968.0,0.01164]
[1766588285805,0.01149676,86981.0,86968.0,0.01164]
[1766588286013,0.01149676,86981.0,86970.0,0.01164]
[1766588286234,0.01149716,86978.0,86970.0,0.01164]
[1766588286427,0.01149663,86982.0,86970.0,0.01164]
[1766588286625,0.01149676,86981.0,86970.0,0.01164]
[1766588286807,0.01149689,86980.0,86970.0,0.01164]
[1766588287007,0.01149676,86981.0,86970.0,0.01164]
[1766588287211,0.01149676,86981.0,86968.0,0.01164]
[1766588287418,0.01157434,86981.0,86968.0,0.01164]
[1766588287622,7.758e-05,86981.0,86968.0,0.01164]
[1766588287823,0.01149716,86978.0,86968.0,0.0101471]
[1766588288037,0.0689822,86979.0,86968.0,0.0101471]
[1766588288171,0.46363167,86980.0,86968.0,0.0101471]
[1766588288366,7.758e-05,86981.0,86968.0,0.00997548]
[1766588288624,0.01149689,86980.0,86968.0,0.00997548]
[1766588288793,0.01149689,86980.0,86964.0,0.04611]
[1766588288998,7.758e-05,86981.0,86965.0,0.01164]
[1766588289172,0.01149597,86987.0,86981.0,7.7e-05]
[1766588289543,0.01164,86993.0,86987.0,0.000583]
[1766588289678,0.01164,86993.0,86975.0,0.02291738]
[1766588289679,0.02313517,86993.0,86977.0,0.01164]
[1766588289889,0.01149544,86991.0,86977.0,0.01164]
[1766588290083,0.01149583,86988.0,86977.0,0.01164]
[1766588290286,0.000439,86977.0,86970.0,0.01164]
[1766588290484,0.000439,86977.0,86970.0,0.01199551]
[1766588290693,0.45213478,86980.0,86970.0,0.01199551]
[1766588290902,0.01149716,86978.0,86970.0,0.01199551]
[1766588291131,0.01149716,86978.0,86970.0,0.00035551]
[1766588291132,0.01149742,86976.0,86970.0,0.00035551]
[1766588291334,0.01185321,86970.0,86947.0,0.046]
[1766588291549,0.01149834,86969.0,86956.0,0.01164]
[1766588291743,0.000355,86970.0,86956.0,0.01164]
[1766588292047,0.00011,86974.0,86956.0,0.01164]
[1766588292222,0.01149795,86972.0,86956.0,0.01164]
[1766588292403,1.45521,86969.0,86956.0,0.01164]
[1766588293059,1.46670834,86969.0,86956.0,0.01164]
[1766588293286,1.45521,86969.0,86954.0,0.00011]
[1766588293489,1.45521,86969.0,86955.0,0.01164]
[1766588294555,1.46670834,86969.0,86955.0,0.01164]
[1766588294700,1.45521,86969.0,86955.0,0.01164]
[1766588296112,1.52420036,86969.0,86955.0,0.01164]
[1766588296315,0.01149848,86968.0,86954.0,0.00011]
[1766588296518,0.01149848,86968.0,86955.0,0.01164]
[1766588296916,0.01149861,86967.0,86955.0,0.01164]
[1766588297515,0.06899107,86968.0,86955.0,0.01164]
[1766588297719,0.01149848,86968.0,86955.0,0.01164]
[1766588297925,0.01149861,86967.0,86955.0,0.01164]
[1766588298326,1.52420033,86969.0,86954.0,0.00011]
[1766588298664,1.46670834,86969.0,86955.0,0.01164]
[1766588299042,1.45521,86969.0,86955.0,0.01164]
[1766588299779,1.46670834,86969.0,86955.0,0.01164]
[1766588300745,0.01149848,86968.0,86955.0,0.01164]
[1766588301192,1.45521,86966.0,86954.0,0.00011]
[1766588301412,0.000439,86955.0,86949.0,6.951e-05]
[1766588301529,1.45521,86958.0,86949.0,6.951e-05]